Workbook

Sheet prob1
B2: kT | C2: 0.0259 | D2: eV
B4: Jph_IV | C4: 20 | D4: mA/cm^2
B5: Jph_CI | C5: 20 | D5: mA/cm^2
B6: J0_IV | C6: 1e-10 | D6: mA/cm^2
B7: J0_CI | C7: 1e-10 | D7: mA/cm^2
B8: n | C8: 1
B10: Jph_CV | C10: 80 | D10: mA/cm^2
B11: J0_CV | C11: 1e-10 | D11: mA/cm^2
B12: n2 | C12: 2
B14: JnetA | C14: =C4+C6 -> 20 | D14: mA/cm^2
B15: JnetB | C15: =C5+C7 -> 20 | D15: mA/cm^2
B16: <Jnet> | C16: =(C14+C15)/2 -> 20 | D16: mA/cm^2
B17: dJnet | C17: =C14-C15 -> 0 | D17: mA/cm^2

Sheet Sheet1
A1: V | B1: J1 | C1: J_IV | D1: V_IV | E1: J_CI | F1: V_CI | G1: J2 | H1: Jnet
A2: -0.1 | B2: =prob1!C$16-SQRT((prob1!C$17/2)^2+prob1!C$6*prob1!C$7*EXP(Sheet1!A2/prob1!C$8/prob1!C$2)) -> 20 | C2: =prob1!C$8*prob1!C$2*LN((prob1!C$4-Sheet1!B2)/prob1!C$6+1) -> -0.04999372639 | D2: =prob1!C$8*prob1!C$2*LN((prob1!C$5-Sheet1!B2)/prob1!C$7+1) -> -0.04999372639 | E2: =prob1!C$4-prob1!C$6*(EXP(Sheet1!A2/prob1!C$8/prob1!C$2)-1) -> 20 | F2: =prob1!C$5-prob1!C$7*(EXP(Sheet1!A2/prob1!C$8/prob1!C$2)-1) -> 20 | G2: =prob1!C$10-prob1!C$11*(EXP(Sheet1!A2/prob1!C$12/prob1!C$2)-1) -> 80 | H2: =B2+G2 -> 100
A3: -0.05 | B3: =prob1!C$16-SQRT((prob1!C$17/2)^2+prob1!C$6*prob1!C$7*EXP(Sheet1!A3/prob1!C$8/prob1!C$2)) -> 20 | C3: =prob1!C$8*prob1!C$2*LN((prob1!C$4-Sheet1!B3)/prob1!C$6+1) -> -0.02499887694 | D3: =prob1!C$8*prob1!C$2*LN((prob1!C$5-Sheet1!B3)/prob1!C$7+1) -> -0.02499887694 | E3: =prob1!C$4-prob1!C$6*(EXP(Sheet1!A3/prob1!C$8/prob1!C$2)-1) -> 20 | F3: =prob1!C$5-prob1!C$7*(EXP(Sheet1!A3/prob1!C$8/prob1!C$2)-1) -> 20 | G3: =prob1!C$10-prob1!C$11*(EXP(Sheet1!A3/prob1!C$12/prob1!C$2)-1) -> 80 | H3: =B3+G3 -> 100
A4: 0 | B4: =prob1!C$16-SQRT((prob1!C$17/2)^2+prob1!C$6*prob1!C$7*EXP(Sheet1!A4/prob1!C$8/prob1!C$2)) -> 20 | C4: =prob1!C$8*prob1!C$2*LN((prob1!C$4-Sheet1!B4)/prob1!C$6+1) -> 0 | D4: =prob1!C$8*prob1!C$2*LN((prob1!C$5-Sheet1!B4)/prob1!C$7+1) -> 0 | E4: =prob1!C$4-prob1!C$6*(EXP(Sheet1!A4/prob1!C$8/prob1!C$2)-1) -> 20 | F4: =prob1!C$5-prob1!C$7*(EXP(Sheet1!A4/prob1!C$8/prob1!C$2)-1) -> 20 | G4: =prob1!C$10-prob1!C$11*(EXP(Sheet1!A4/prob1!C$12/prob1!C$2)-1) -> 80 | H4: 100
A5: 0.05 | B5: =prob1!C$16-SQRT((prob1!C$17/2)^2+prob1!C$6*prob1!C$7*EXP(Sheet1!A5/prob1!C$8/prob1!C$2)) -> 20 | C5: =prob1!C$8*prob1!C$2*LN((prob1!C$4-Sheet1!B5)/prob1!C$6+1) -> 0.0250002626 | D5: =prob1!C$8*prob1!C$2*LN((prob1!C$5-Sheet1!B5)/prob1!C$7+1) -> 0.0250002626 | E5: =prob1!C$4-prob1!C$6*(EXP(Sheet1!A5/prob1!C$8/prob1!C$2)-1) -> 20 | F5: =prob1!C$5-prob1!C$7*(EXP(Sheet1!A5/prob1!C$8/prob1!C$2)-1) -> 20 | G5: =prob1!C$10-prob1!C$11*(EXP(Sheet1!A5/prob1!C$12/prob1!C$2)-1) -> 80 | H5: 100
A6: 0.1 | B6: =prob1!C$16-SQRT((prob1!C$17/2)^2+prob1!C$6*prob1!C$7*EXP(Sheet1!A6/prob1!C$8/prob1!C$2)) -> 20 | C6: =prob1!C$8*prob1!C$2*LN((prob1!C$4-Sheet1!B6)/prob1!C$6+1) -> 0.05000008866 | D6: =prob1!C$8*prob1!C$2*LN((prob1!C$5-Sheet1!B6)/prob1!C$7+1) -> 0.05000008866 | E6: =prob1!C$4-prob1!C$6*(EXP(Sheet1!A6/prob1!C$8/prob1!C$2)-1) -> 20 | F6: =prob1!C$5-prob1!C$7*(EXP(Sheet1!A6/prob1!C$8/prob1!C$2)-1) -> 20 | G6: =prob1!C$10-prob1!C$11*(EXP(Sheet1!A6/prob1!C$12/prob1!C$2)-1) -> 80 | H6: 100
A7: 0.15 | B7: =prob1!C$16-SQRT((prob1!C$17/2)^2+prob1!C$6*prob1!C$7*EXP(Sheet1!A7/prob1!C$8/prob1!C$2)) -> 20 | C7: =prob1!C$8*prob1!C$2*LN((prob1!C$4-Sheet1!B7)/prob1!C$6+1) -> 0.07500004122 | D7: =prob1!C$8*prob1!C$2*LN((prob1!C$5-Sheet1!B7)/prob1!C$7+1) -> 0.07500004122 | E7: =prob1!C$4-prob1!C$6*(EXP(Sheet1!A7/prob1!C$8/prob1!C$2)-1) -> 19.99999997 | F7: =prob1!C$5-prob1!C$7*(EXP(Sheet1!A7/prob1!C$8/prob1!C$2)-1) -> 19.99999997 | G7: =prob1!C$10-prob1!C$11*(EXP(Sheet1!A7/prob1!C$12/prob1!C$2)-1) -> 80 | H7: 100
A8: 0.2 | B8: =prob1!C$16-SQRT((prob1!C$17/2)^2+prob1!C$6*prob1!C$7*EXP(Sheet1!A8/prob1!C$8/prob1!C$2)) -> 20 | C8: =prob1!C$8*prob1!C$2*LN((prob1!C$4-Sheet1!B8)/prob1!C$6+1) -> 0.1000000149 | D8: =prob1!C$8*prob1!C$2*LN((prob1!C$5-Sheet1!B8)/prob1!C$7+1) -> 0.1000000149 | E8: =prob1!C$4-prob1!C$6*(EXP(Sheet1!A8/prob1!C$8/prob1!C$2)-1) -> 19.99999977 | F8: =prob1!C$5-prob1!C$7*(EXP(Sheet1!A8/prob1!C$8/prob1!C$2)-1) -> 19.99999977 | G8: =prob1!C$10-prob1!C$11*(EXP(Sheet1!A8/prob1!C$12/prob1!C$2)-1) -> 80 | H8: 99.99999999
A9: 0.25 | B9: =prob1!C$16-SQRT((prob1!C$17/2)^2+prob1!C$6*prob1!C$7*EXP(Sheet1!A9/prob1!C$8/prob1!C$2)) -> 19.99999999 | C9: =prob1!C$8*prob1!C$2*LN((prob1!C$4-Sheet1!B9)/prob1!C$6+1) -> 0.1250000073 | D9: =prob1!C$8*prob1!C$2*LN((prob1!C$5-Sheet1!B9)/prob1!C$7+1) -> 0.1250000073 | E9: =prob1!C$4-prob1!C$6*(EXP(Sheet1!A9/prob1!C$8/prob1!C$2)-1) -> 19.99999844 | F9: =prob1!C$5-prob1!C$7*(EXP(Sheet1!A9/prob1!C$8/prob1!C$2)-1) -> 19.99999844 | G9: =prob1!C$10-prob1!C$11*(EXP(Sheet1!A9/prob1!C$12/prob1!C$2)-1) -> 79.99999999 | H9: 99.99999998
A10: 0.3 | B10: =prob1!C$16-SQRT((prob1!C$17/2)^2+prob1!C$6*prob1!C$7*EXP(Sheet1!A10/prob1!C$8/prob1!C$2)) -> 19.99999997 | C10: =prob1!C$8*prob1!C$2*LN((prob1!C$4-Sheet1!B10)/prob1!C$6+1) -> 0.1500000014 | D10: =prob1!C$8*prob1!C$2*LN((prob1!C$5-Sheet1!B10)/prob1!C$7+1) -> 0.1500000014 | E10: =prob1!C$4-prob1!C$6*(EXP(Sheet1!A10/prob1!C$8/prob1!C$2)-1) -> 19.99998927 | F10: =prob1!C$5-prob1!C$7*(EXP(Sheet1!A10/prob1!C$8/prob1!C$2)-1) -> 19.99998927 | G10: =prob1!C$10-prob1!C$11*(EXP(Sheet1!A10/prob1!C$12/prob1!C$2)-1) -> 79.99999997 | H10: 99.99999993
A11: 0.35 | B11: =prob1!C$16-SQRT((prob1!C$17/2)^2+prob1!C$6*prob1!C$7*EXP(Sheet1!A11/prob1!C$8/prob1!C$2)) -> 19.99999991 | C11: =prob1!C$8*prob1!C$2*LN((prob1!C$4-Sheet1!B11)/prob1!C$6+1) -> 0.1750000007 | D11: =prob1!C$8*prob1!C$2*LN((prob1!C$5-Sheet1!B11)/prob1!C$7+1) -> 0.1750000007 | E11: =prob1!C$4-prob1!C$6*(EXP(Sheet1!A11/prob1!C$8/prob1!C$2)-1) -> 19.99992607 | F11: =prob1!C$5-prob1!C$7*(EXP(Sheet1!A11/prob1!C$8/prob1!C$2)-1) -> 19.99992607 | G11: =prob1!C$10-prob1!C$11*(EXP(Sheet1!A11/prob1!C$12/prob1!C$2)-1) -> 79.99999991 | H11: 99.99999983
A12: 0.4 | B12: =prob1!C$16-SQRT((prob1!C$17/2)^2+prob1!C$6*prob1!C$7*EXP(Sheet1!A12/prob1!C$8/prob1!C$2)) -> 19.99999977 | C12: =prob1!C$8*prob1!C$2*LN((prob1!C$4-Sheet1!B12)/prob1!C$6+1) -> 0.2 | D12: =prob1!C$8*prob1!C$2*LN((prob1!C$5-Sheet1!B12)/prob1!C$7+1) -> 0.2 | E12: =prob1!C$4-prob1!C$6*(EXP(Sheet1!A12/prob1!C$8/prob1!C$2)-1) -> 19.99949038 | F12: =prob1!C$5-prob1!C$7*(EXP(Sheet1!A12/prob1!C$8/prob1!C$2)-1) -> 19.99949038 | G12: =prob1!C$10-prob1!C$11*(EXP(Sheet1!A12/prob1!C$12/prob1!C$2)-1) -> 79.99999977 | H12: 99.99999955
A13: 0.45 | B13: =prob1!C$16-SQRT((prob1!C$17/2)^2+prob1!C$6*prob1!C$7*EXP(Sheet1!A13/prob1!C$8/prob1!C$2)) -> 19.99999941 | C13: =prob1!C$8*prob1!C$2*LN((prob1!C$4-Sheet1!B13)/prob1!C$6+1) -> 0.2250000001 | D13: =prob1!C$8*prob1!C$2*LN((prob1!C$5-Sheet1!B13)/prob1!C$7+1) -> 0.2250000001 | E13: =prob1!C$4-prob1!C$6*(EXP(Sheet1!A13/prob1!C$8/prob1!C$2)-1) -> 19.99648717 | F13: =prob1!C$5-prob1!C$7*(EXP(Sheet1!A13/prob1!C$8/prob1!C$2)-1) -> 19.99648717 | G13: =prob1!C$10-prob1!C$11*(EXP(Sheet1!A13/prob1!C$12/prob1!C$2)-1) -> 79.99999941 | H13: 99.99999881
A14: 0.5 | B14: =prob1!C$16-SQRT((prob1!C$17/2)^2+prob1!C$6*prob1!C$7*EXP(Sheet1!A14/prob1!C$8/prob1!C$2)) -> 19.99999844 | C14: =prob1!C$8*prob1!C$2*LN((prob1!C$4-Sheet1!B14)/prob1!C$6+1) -> 0.25 | D14: =prob1!C$8*prob1!C$2*LN((prob1!C$5-Sheet1!B14)/prob1!C$7+1) -> 0.25 | E14: =prob1!C$4-prob1!C$6*(EXP(Sheet1!A14/prob1!C$8/prob1!C$2)-1) -> 19.97578618 | F14: =prob1!C$5-prob1!C$7*(EXP(Sheet1!A14/prob1!C$8/prob1!C$2)-1) -> 19.97578618 | G14: =prob1!C$10-prob1!C$11*(EXP(Sheet1!A14/prob1!C$12/prob1!C$2)-1) -> 79.99999844 | H14: 99.99999689
A15: 0.55 | B15: =prob1!C$16-SQRT((prob1!C$17/2)^2+prob1!C$6*prob1!C$7*EXP(Sheet1!A15/prob1!C$8/prob1!C$2)) -> 19.99999591 | C15: =prob1!C$8*prob1!C$2*LN((prob1!C$4-Sheet1!B15)/prob1!C$6+1) -> 0.275 | D15: =prob1!C$8*prob1!C$2*LN((prob1!C$5-Sheet1!B15)/prob1!C$7+1) -> 0.275 | E15: =prob1!C$4-prob1!C$6*(EXP(Sheet1!A15/prob1!C$8/prob1!C$2)-1) -> 19.83309487 | F15: =prob1!C$5-prob1!C$7*(EXP(Sheet1!A15/prob1!C$8/prob1!C$2)-1) -> 19.83309487 | G15: =prob1!C$10-prob1!C$11*(EXP(Sheet1!A15/prob1!C$12/prob1!C$2)-1) -> 79.99999591 | H15: 99.99999183
A16: 0.6 | B16: =prob1!C$16-SQRT((prob1!C$17/2)^2+prob1!C$6*prob1!C$7*EXP(Sheet1!A16/prob1!C$8/prob1!C$2)) -> 19.99998927 | C16: =prob1!C$8*prob1!C$2*LN((prob1!C$4-Sheet1!B16)/prob1!C$6+1) -> 0.3 | D16: =prob1!C$8*prob1!C$2*LN((prob1!C$5-Sheet1!B16)/prob1!C$7+1) -> 0.3 | E16: =prob1!C$4-prob1!C$6*(EXP(Sheet1!A16/prob1!C$8/prob1!C$2)-1) -> 18.84952807 | F16: =prob1!C$5-prob1!C$7*(EXP(Sheet1!A16/prob1!C$8/prob1!C$2)-1) -> 18.84952807 | G16: =prob1!C$10-prob1!C$11*(EXP(Sheet1!A16/prob1!C$12/prob1!C$2)-1) -> 79.99998927 | H16: 99.99997855
A17: 0.65 | B17: =prob1!C$16-SQRT((prob1!C$17/2)^2+prob1!C$6*prob1!C$7*EXP(Sheet1!A17/prob1!C$8/prob1!C$2)) -> 19.99997184 | C17: =prob1!C$8*prob1!C$2*LN((prob1!C$4-Sheet1!B17)/prob1!C$6+1) -> 0.325 | D17: =prob1!C$8*prob1!C$2*LN((prob1!C$5-Sheet1!B17)/prob1!C$7+1) -> 0.325 | E17: =prob1!C$4-prob1!C$6*(EXP(Sheet1!A17/prob1!C$8/prob1!C$2)-1) -> 12.06983243 | F17: =prob1!C$5-prob1!C$7*(EXP(Sheet1!A17/prob1!C$8/prob1!C$2)-1) -> 12.06983243 | G17: =prob1!C$10-prob1!C$11*(EXP(Sheet1!A17/prob1!C$12/prob1!C$2)-1) -> 79.99997184 | H17: 99.99994368
A18: 0.7 | B18: =prob1!C$16-SQRT((prob1!C$17/2)^2+prob1!C$6*prob1!C$7*EXP(Sheet1!A18/prob1!C$8/prob1!C$2)) -> 19.99992607 | C18: =prob1!C$8*prob1!C$2*LN((prob1!C$4-Sheet1!B18)/prob1!C$6+1) -> 0.35 | D18: =prob1!C$8*prob1!C$2*LN((prob1!C$5-Sheet1!B18)/prob1!C$7+1) -> 0.35 | E18: =prob1!C$4-prob1!C$6*(EXP(Sheet1!A18/prob1!C$8/prob1!C$2)-1) -> -34.66240053 | F18: =prob1!C$5-prob1!C$7*(EXP(Sheet1!A18/prob1!C$8/prob1!C$2)-1) -> -34.66240053 | G18: =prob1!C$10-prob1!C$11*(EXP(Sheet1!A18/prob1!C$12/prob1!C$2)-1) -> 79.99992607 | H18: 99.99985213
A19: 0.75 | B19: =prob1!C$16-SQRT((prob1!C$17/2)^2+prob1!C$6*prob1!C$7*EXP(Sheet1!A19/prob1!C$8/prob1!C$2)) -> 19.99980589 | C19: =prob1!C$8*prob1!C$2*LN((prob1!C$4-Sheet1!B19)/prob1!C$6+1) -> 0.375 | D19: =prob1!C$8*prob1!C$2*LN((prob1!C$5-Sheet1!B19)/prob1!C$7+1) -> 0.375 | E19: =prob1!C$4-prob1!C$6*(EXP(Sheet1!A19/prob1!C$8/prob1!C$2)-1) -> -356.7862414 | F19: =prob1!C$5-prob1!C$7*(EXP(Sheet1!A19/prob1!C$8/prob1!C$2)-1) -> -356.7862414 | G19: =prob1!C$10-prob1!C$11*(EXP(Sheet1!A19/prob1!C$12/prob1!C$2)-1) -> 79.99980589 | H19: 99.99961178
A20: 0.8 | B20: =prob1!C$16-SQRT((prob1!C$17/2)^2+prob1!C$6*prob1!C$7*EXP(Sheet1!A20/prob1!C$8/prob1!C$2)) -> 19.99949038 | C20: =prob1!C$8*prob1!C$2*LN((prob1!C$4-Sheet1!B20)/prob1!C$6+1) -> 0.4 | D20: =prob1!C$8*prob1!C$2*LN((prob1!C$5-Sheet1!B20)/prob1!C$7+1) -> 0.4 | E20: =prob1!C$4-prob1!C$6*(EXP(Sheet1!A20/prob1!C$8/prob1!C$2)-1) -> -2577.175943 | F20: =prob1!C$5-prob1!C$7*(EXP(Sheet1!A20/prob1!C$8/prob1!C$2)-1) -> -2577.175943 | G20: =prob1!C$10-prob1!C$11*(EXP(Sheet1!A20/prob1!C$12/prob1!C$2)-1) -> 79.99949038 | H20: 99.99898075
A21: 0.85 | B21: =prob1!C$16-SQRT((prob1!C$17/2)^2+prob1!C$6*prob1!C$7*EXP(Sheet1!A21/prob1!C$8/prob1!C$2)) -> 19.99866201 | C21: =prob1!C$8*prob1!C$2*LN((prob1!C$4-Sheet1!B21)/prob1!C$6+1) -> 0.425 | D21: =prob1!C$8*prob1!C$2*LN((prob1!C$5-Sheet1!B21)/prob1!C$7+1) -> 0.425 | E21: =prob1!C$4-prob1!C$6*(EXP(Sheet1!A21/prob1!C$8/prob1!C$2)-1) -> -17882.25369 | F21: =prob1!C$5-prob1!C$7*(EXP(Sheet1!A21/prob1!C$8/prob1!C$2)-1) -> -17882.25369 | G21: =prob1!C$10-prob1!C$11*(EXP(Sheet1!A21/prob1!C$12/prob1!C$2)-1) -> 79.99866201 | H21: 99.99732401
A22: 0.9 | B22: =prob1!C$16-SQRT((prob1!C$17/2)^2+prob1!C$6*prob1!C$7*EXP(Sheet1!A22/prob1!C$8/prob1!C$2)) -> 19.99648717 | C22: =prob1!C$8*prob1!C$2*LN((prob1!C$4-Sheet1!B22)/prob1!C$6+1) -> 0.45 | D22: =prob1!C$8*prob1!C$2*LN((prob1!C$5-Sheet1!B22)/prob1!C$7+1) -> 0.45 | E22: =prob1!C$4-prob1!C$6*(EXP(Sheet1!A22/prob1!C$8/prob1!C$2)-1) -> -123379.6827 | F22: =prob1!C$5-prob1!C$7*(EXP(Sheet1!A22/prob1!C$8/prob1!C$2)-1) -> -123379.6827 | G22: =prob1!C$10-prob1!C$11*(EXP(Sheet1!A22/prob1!C$12/prob1!C$2)-1) -> 79.99648717 | H22: 99.99297434
A23: 0.95 | B23: =prob1!C$16-SQRT((prob1!C$17/2)^2+prob1!C$6*prob1!C$7*EXP(Sheet1!A23/prob1!C$8/prob1!C$2)) -> 19.99077726 | C23: =prob1!C$8*prob1!C$2*LN((prob1!C$4-Sheet1!B23)/prob1!C$6+1) -> 0.475 | D23: =prob1!C$8*prob1!C$2*LN((prob1!C$5-Sheet1!B23)/prob1!C$7+1) -> 0.475 | E23: =prob1!C$4-prob1!C$6*(EXP(Sheet1!A23/prob1!C$8/prob1!C$2)-1) -> -850570.2078 | F23: =prob1!C$5-prob1!C$7*(EXP(Sheet1!A23/prob1!C$8/prob1!C$2)-1) -> -850570.2078 | G23: =prob1!C$10-prob1!C$11*(EXP(Sheet1!A23/prob1!C$12/prob1!C$2)-1) -> 79.99077726 | H23: 99.98155451
A24: 1 | B24: =prob1!C$16-SQRT((prob1!C$17/2)^2+prob1!C$6*prob1!C$7*EXP(Sheet1!A24/prob1!C$8/prob1!C$2)) -> 19.97578618 | C24: =prob1!C$8*prob1!C$2*LN((prob1!C$4-Sheet1!B24)/prob1!C$6+1) -> 0.5 | D24: =prob1!C$8*prob1!C$2*LN((prob1!C$5-Sheet1!B24)/prob1!C$7+1) -> 0.5 | E24: =prob1!C$4-prob1!C$6*(EXP(Sheet1!A24/prob1!C$8/prob1!C$2)-1) -> -5863072.074 | F24: =prob1!C$5-prob1!C$7*(EXP(Sheet1!A24/prob1!C$8/prob1!C$2)-1) -> -5863072.074 | G24: =prob1!C$10-prob1!C$11*(EXP(Sheet1!A24/prob1!C$12/prob1!C$2)-1) -> 79.97578618 | H24: 99.95157235
A25: 1.05 | B25: =prob1!C$16-SQRT((prob1!C$17/2)^2+prob1!C$6*prob1!C$7*EXP(Sheet1!A25/prob1!C$8/prob1!C$2)) -> 19.9364279 | C25: =prob1!C$8*prob1!C$2*LN((prob1!C$4-Sheet1!B25)/prob1!C$6+1) -> 0.525 | D25: =prob1!C$8*prob1!C$2*LN((prob1!C$5-Sheet1!B25)/prob1!C$7+1) -> 0.525 | E25: =prob1!C$4-prob1!C$6*(EXP(Sheet1!A25/prob1!C$8/prob1!C$2)-1) -> -40414092.88 | F25: =prob1!C$5-prob1!C$7*(EXP(Sheet1!A25/prob1!C$8/prob1!C$2)-1) -> -40414092.88 | G25: =prob1!C$10-prob1!C$11*(EXP(Sheet1!A25/prob1!C$12/prob1!C$2)-1) -> 79.9364279 | H25: 99.87285581
A26: 1.1 | B26: =prob1!C$16-SQRT((prob1!C$17/2)^2+prob1!C$6*prob1!C$7*EXP(Sheet1!A26/prob1!C$8/prob1!C$2)) -> 19.83309487 | C26: =prob1!C$8*prob1!C$2*LN((prob1!C$4-Sheet1!B26)/prob1!C$6+1) -> 0.55 | D26: =prob1!C$8*prob1!C$2*LN((prob1!C$5-Sheet1!B26)/prob1!C$7+1) -> 0.55 | E26: =prob1!C$4-prob1!C$6*(EXP(Sheet1!A26/prob1!C$8/prob1!C$2)-1) -> -278573213.9 | F26: =prob1!C$5-prob1!C$7*(EXP(Sheet1!A26/prob1!C$8/prob1!C$2)-1) -> -278573213.9 | G26: =prob1!C$10-prob1!C$11*(EXP(Sheet1!A26/prob1!C$12/prob1!C$2)-1) -> 79.83309487 | H26: 99.66618973
A27: 1.15 | B27: =prob1!C$16-SQRT((prob1!C$17/2)^2+prob1!C$6*prob1!C$7*EXP(Sheet1!A27/prob1!C$8/prob1!C$2)) -> 19.56179951 | C27: =prob1!C$8*prob1!C$2*LN((prob1!C$4-Sheet1!B27)/prob1!C$6+1) -> 0.575 | D27: =prob1!C$8*prob1!C$2*LN((prob1!C$5-Sheet1!B27)/prob1!C$7+1) -> 0.575 | E27: =prob1!C$4-prob1!C$6*(EXP(Sheet1!A27/prob1!C$8/prob1!C$2)-1) -> -1920196691 | F27: =prob1!C$5-prob1!C$7*(EXP(Sheet1!A27/prob1!C$8/prob1!C$2)-1) -> -1920196691 | G27: =prob1!C$10-prob1!C$11*(EXP(Sheet1!A27/prob1!C$12/prob1!C$2)-1) -> 79.56179951 | H27: 99.12359902
A28: 1.2 | B28: =prob1!C$16-SQRT((prob1!C$17/2)^2+prob1!C$6*prob1!C$7*EXP(Sheet1!A28/prob1!C$8/prob1!C$2)) -> 18.84952807 | C28: =prob1!C$8*prob1!C$2*LN((prob1!C$4-Sheet1!B28)/prob1!C$6+1) -> 0.6 | D28: =prob1!C$8*prob1!C$2*LN((prob1!C$5-Sheet1!B28)/prob1!C$7+1) -> 0.6 | E28: =prob1!C$4-prob1!C$6*(EXP(Sheet1!A28/prob1!C$8/prob1!C$2)-1) -> -1.32358567e+10 | F28: =prob1!C$5-prob1!C$7*(EXP(Sheet1!A28/prob1!C$8/prob1!C$2)-1) -> -1.32358567e+10 | G28: =prob1!C$10-prob1!C$11*(EXP(Sheet1!A28/prob1!C$12/prob1!C$2)-1) -> 78.84952807 | H28: 97.69905613
A29: 1.25 | B29: =prob1!C$16-SQRT((prob1!C$17/2)^2+prob1!C$6*prob1!C$7*EXP(Sheet1!A29/prob1!C$8/prob1!C$2)) -> 16.97949752 | C29: =prob1!C$8*prob1!C$2*LN((prob1!C$4-Sheet1!B29)/prob1!C$6+1) -> 0.625 | D29: =prob1!C$8*prob1!C$2*LN((prob1!C$5-Sheet1!B29)/prob1!C$7+1) -> 0.625 | E29: =prob1!C$4-prob1!C$6*(EXP(Sheet1!A29/prob1!C$8/prob1!C$2)-1) -> -9.123435224e+10 | F29: =prob1!C$5-prob1!C$7*(EXP(Sheet1!A29/prob1!C$8/prob1!C$2)-1) -> -9.123435224e+10 | G29: =prob1!C$10-prob1!C$11*(EXP(Sheet1!A29/prob1!C$12/prob1!C$2)-1) -> 76.97949752 | H29: 93.95899504
A30: 1.3 | B30: =prob1!C$16-SQRT((prob1!C$17/2)^2+prob1!C$6*prob1!C$7*EXP(Sheet1!A30/prob1!C$8/prob1!C$2)) -> 12.06983243 | C30: =prob1!C$8*prob1!C$2*LN((prob1!C$4-Sheet1!B30)/prob1!C$6+1) -> 0.65 | D30: =prob1!C$8*prob1!C$2*LN((prob1!C$5-Sheet1!B30)/prob1!C$7+1) -> 0.65 | E30: =prob1!C$4-prob1!C$6*(EXP(Sheet1!A30/prob1!C$8/prob1!C$2)-1) -> -6.288755769e+11 | F30: =prob1!C$5-prob1!C$7*(EXP(Sheet1!A30/prob1!C$8/prob1!C$2)-1) -> -6.288755769e+11 | G30: =prob1!C$10-prob1!C$11*(EXP(Sheet1!A30/prob1!C$12/prob1!C$2)-1) -> 72.06983243 | H30: 84.13966486
A31: 1.35 | B31: =prob1!C$16-SQRT((prob1!C$17/2)^2+prob1!C$6*prob1!C$7*EXP(Sheet1!A31/prob1!C$8/prob1!C$2)) -> -0.8202304504 | C31: =prob1!C$8*prob1!C$2*LN((prob1!C$4-Sheet1!B31)/prob1!C$6+1) -> 0.675 | D31: =prob1!C$8*prob1!C$2*LN((prob1!C$5-Sheet1!B31)/prob1!C$7+1) -> 0.675 | E31: =prob1!C$4-prob1!C$6*(EXP(Sheet1!A31/prob1!C$8/prob1!C$2)-1) -> -4.33481996e+12 | F31: =prob1!C$5-prob1!C$7*(EXP(Sheet1!A31/prob1!C$8/prob1!C$2)-1) -> -4.33481996e+12 | G31: =prob1!C$10-prob1!C$11*(EXP(Sheet1!A31/prob1!C$12/prob1!C$2)-1) -> 59.17976955 | H31: 58.3595391
A32: 1.4 | B32: =prob1!C$16-SQRT((prob1!C$17/2)^2+prob1!C$6*prob1!C$7*EXP(Sheet1!A32/prob1!C$8/prob1!C$2)) -> -34.66240053 | C32: =prob1!C$8*prob1!C$2*LN((prob1!C$4-Sheet1!B32)/prob1!C$6+1) -> 0.7 | D32: =prob1!C$8*prob1!C$2*LN((prob1!C$5-Sheet1!B32)/prob1!C$7+1) -> 0.7 | E32: =prob1!C$4-prob1!C$6*(EXP(Sheet1!A32/prob1!C$8/prob1!C$2)-1) -> -2.987978032e+13 | F32: =prob1!C$5-prob1!C$7*(EXP(Sheet1!A32/prob1!C$8/prob1!C$2)-1) -> -2.987978032e+13 | G32: =prob1!C$10-prob1!C$11*(EXP(Sheet1!A32/prob1!C$12/prob1!C$2)-1) -> 25.33759947 | H32: -9.324801066
A33: 1.45 | B33: =prob1!C$16-SQRT((prob1!C$17/2)^2+prob1!C$6*prob1!C$7*EXP(Sheet1!A33/prob1!C$8/prob1!C$2)) -> -123.5132065 | C33: =prob1!C$8*prob1!C$2*LN((prob1!C$4-Sheet1!B33)/prob1!C$6+1) -> 0.725 | D33: =prob1!C$8*prob1!C$2*LN((prob1!C$5-Sheet1!B33)/prob1!C$7+1) -> 0.725 | E33: =prob1!C$4-prob1!C$6*(EXP(Sheet1!A33/prob1!C$8/prob1!C$2)-1) -> -2.059604044e+14 | F33: =prob1!C$5-prob1!C$7*(EXP(Sheet1!A33/prob1!C$8/prob1!C$2)-1) -> -2.059604044e+14 | G33: =prob1!C$10-prob1!C$11*(EXP(Sheet1!A33/prob1!C$12/prob1!C$2)-1) -> -63.5132065 | H33: -187.026413
A34: 1.5 | B34: =prob1!C$16-SQRT((prob1!C$17/2)^2+prob1!C$6*prob1!C$7*EXP(Sheet1!A34/prob1!C$8/prob1!C$2)) -> -356.7862414 | C34: =prob1!C$8*prob1!C$2*LN((prob1!C$4-Sheet1!B34)/prob1!C$6+1) -> 0.75 | D34: =prob1!C$8*prob1!C$2*LN((prob1!C$5-Sheet1!B34)/prob1!C$7+1) -> 0.75 | E34: =prob1!C$4-prob1!C$6*(EXP(Sheet1!A34/prob1!C$8/prob1!C$2)-1) -> -1419678716754480 | F34: =prob1!C$5-prob1!C$7*(EXP(Sheet1!A34/prob1!C$8/prob1!C$2)-1) -> -1419678716754480 | G34: =prob1!C$10-prob1!C$11*(EXP(Sheet1!A34/prob1!C$12/prob1!C$2)-1) -> -296.7862414 | H34: -653.5724827
A35: 1.55 | B35: =prob1!C$16-SQRT((prob1!C$17/2)^2+prob1!C$6*prob1!C$7*EXP(Sheet1!A35/prob1!C$8/prob1!C$2)) -> -969.2321072 | C35: =prob1!C$8*prob1!C$2*LN((prob1!C$4-Sheet1!B35)/prob1!C$6+1) -> 0.775 | D35: =prob1!C$8*prob1!C$2*LN((prob1!C$5-Sheet1!B35)/prob1!C$7+1) -> 0.775 | E35: =prob1!C$4-prob1!C$6*(EXP(Sheet1!A35/prob1!C$8/prob1!C$2)-1) -> -9785801618670394 | F35: =prob1!C$5-prob1!C$7*(EXP(Sheet1!A35/prob1!C$8/prob1!C$2)-1) -> -9785801618670394 | G35: =prob1!C$10-prob1!C$11*(EXP(Sheet1!A35/prob1!C$12/prob1!C$2)-1) -> -909.2321072 | H35: -1878.464214
A36: 1.6 | B36: =prob1!C$16-SQRT((prob1!C$17/2)^2+prob1!C$6*prob1!C$7*EXP(Sheet1!A36/prob1!C$8/prob1!C$2)) -> -2577.175943 | C36: =prob1!C$8*prob1!C$2*LN((prob1!C$4-Sheet1!B36)/prob1!C$6+1) -> 0.8 | D36: =prob1!C$8*prob1!C$2*LN((prob1!C$5-Sheet1!B36)/prob1!C$7+1) -> 0.8 | E36: =prob1!C$4-prob1!C$6*(EXP(Sheet1!A36/prob1!C$8/prob1!C$2)-1) -> -6.745322881e+16 | F36: =prob1!C$5-prob1!C$7*(EXP(Sheet1!A36/prob1!C$8/prob1!C$2)-1) -> -6.745322881e+16 | G36: =prob1!C$10-prob1!C$11*(EXP(Sheet1!A36/prob1!C$12/prob1!C$2)-1) -> -2517.175943 | H36: -5094.351887
A37: 1.65 | B37: =prob1!C$16-SQRT((prob1!C$17/2)^2+prob1!C$6*prob1!C$7*EXP(Sheet1!A37/prob1!C$8/prob1!C$2)) -> -6798.746412 | C37: =prob1!C$8*prob1!C$2*LN((prob1!C$4-Sheet1!B37)/prob1!C$6+1) -> 0.825 | D37: =prob1!C$8*prob1!C$2*LN((prob1!C$5-Sheet1!B37)/prob1!C$7+1) -> 0.825 | E37: =prob1!C$4-prob1!C$6*(EXP(Sheet1!A37/prob1!C$8/prob1!C$2)-1) -> -4.649530263e+17 | F37: =prob1!C$5-prob1!C$7*(EXP(Sheet1!A37/prob1!C$8/prob1!C$2)-1) -> -4.649530263e+17 | G37: =prob1!C$10-prob1!C$11*(EXP(Sheet1!A37/prob1!C$12/prob1!C$2)-1) -> -6738.746412 | H37: -13537.49282
A38: 1.7 | B38: =prob1!C$16-SQRT((prob1!C$17/2)^2+prob1!C$6*prob1!C$7*EXP(Sheet1!A38/prob1!C$8/prob1!C$2)) -> -17882.25369 | C38: =prob1!C$8*prob1!C$2*LN((prob1!C$4-Sheet1!B38)/prob1!C$6+1) -> 0.85 | D38: =prob1!C$8*prob1!C$2*LN((prob1!C$5-Sheet1!B38)/prob1!C$7+1) -> 0.85 | E38: =prob1!C$4-prob1!C$6*(EXP(Sheet1!A38/prob1!C$8/prob1!C$2)-1) -> -3.204906873e+18 | F38: =prob1!C$5-prob1!C$7*(EXP(Sheet1!A38/prob1!C$8/prob1!C$2)-1) -> -3.204906873e+18 | G38: =prob1!C$10-prob1!C$11*(EXP(Sheet1!A38/prob1!C$12/prob1!C$2)-1) -> -17822.25369 | H38: -35704.50739
A39: 1.75 | B39: =prob1!C$16-SQRT((prob1!C$17/2)^2+prob1!C$6*prob1!C$7*EXP(Sheet1!A39/prob1!C$8/prob1!C$2)) -> -46981.40876 | C39: =prob1!C$8*prob1!C$2*LN((prob1!C$4-Sheet1!B39)/prob1!C$6+1) -> 0.875 | D39: =prob1!C$8*prob1!C$2*LN((prob1!C$5-Sheet1!B39)/prob1!C$7+1) -> 0.875 | E39: =prob1!C$4-prob1!C$6*(EXP(Sheet1!A39/prob1!C$8/prob1!C$2)-1) -> -2.209132425e+19 | F39: =prob1!C$5-prob1!C$7*(EXP(Sheet1!A39/prob1!C$8/prob1!C$2)-1) -> -2.209132425e+19 | G39: =prob1!C$10-prob1!C$11*(EXP(Sheet1!A39/prob1!C$12/prob1!C$2)-1) -> -46921.40876 | H39: -93902.81752
A40: 1.8 | B40: =prob1!C$16-SQRT((prob1!C$17/2)^2+prob1!C$6*prob1!C$7*EXP(Sheet1!A40/prob1!C$8/prob1!C$2)) -> -123379.6827 | C40: =prob1!C$8*prob1!C$2*LN((prob1!C$4-Sheet1!B40)/prob1!C$6+1) -> 0.9 | D40: =prob1!C$8*prob1!C$2*LN((prob1!C$5-Sheet1!B40)/prob1!C$7+1) -> 0.9 | E40: =prob1!C$4-prob1!C$6*(EXP(Sheet1!A40/prob1!C$8/prob1!C$2)-1) -> -1.522748169e+20 | F40: =prob1!C$5-prob1!C$7*(EXP(Sheet1!A40/prob1!C$8/prob1!C$2)-1) -> -1.522748169e+20 | G40: =prob1!C$10-prob1!C$11*(EXP(Sheet1!A40/prob1!C$12/prob1!C$2)-1) -> -123319.6827 | H40: -246699.3654
A41: 1.85 | B41: =prob1!C$16-SQRT((prob1!C$17/2)^2+prob1!C$6*prob1!C$7*EXP(Sheet1!A41/prob1!C$8/prob1!C$2)) -> -323959.2613 | C41: =prob1!C$8*prob1!C$2*LN((prob1!C$4-Sheet1!B41)/prob1!C$6+1) -> 0.925 | D41: =prob1!C$8*prob1!C$2*LN((prob1!C$5-Sheet1!B41)/prob1!C$7+1) -> 0.925 | E41: =prob1!C$4-prob1!C$6*(EXP(Sheet1!A41/prob1!C$8/prob1!C$2)-1) -> -1.049625617e+21 | F41: =prob1!C$5-prob1!C$7*(EXP(Sheet1!A41/prob1!C$8/prob1!C$2)-1) -> -1.049625617e+21 | G41: =prob1!C$10-prob1!C$11*(EXP(Sheet1!A41/prob1!C$12/prob1!C$2)-1) -> -323899.2613 | H41: -647858.5226
A42: 1.9 | B42: =prob1!C$16-SQRT((prob1!C$17/2)^2+prob1!C$6*prob1!C$7*EXP(Sheet1!A42/prob1!C$8/prob1!C$2)) -> -850570.2078 | C42: =prob1!C$8*prob1!C$2*LN((prob1!C$4-Sheet1!B42)/prob1!C$6+1) -> 0.95 | D42: =prob1!C$8*prob1!C$2*LN((prob1!C$5-Sheet1!B42)/prob1!C$7+1) -> 0.95 | E42: =prob1!C$4-prob1!C$6*(EXP(Sheet1!A42/prob1!C$8/prob1!C$2)-1) -> -7.235037016e+21 | F42: =prob1!C$5-prob1!C$7*(EXP(Sheet1!A42/prob1!C$8/prob1!C$2)-1) -> -7.235037016e+21 | G42: =prob1!C$10-prob1!C$11*(EXP(Sheet1!A42/prob1!C$12/prob1!C$2)-1) -> -850510.2078 | H42: -1701080.416
A43: 1.95 | B43: =prob1!C$16-SQRT((prob1!C$17/2)^2+prob1!C$6*prob1!C$7*EXP(Sheet1!A43/prob1!C$8/prob1!C$2)) -> -2233159.058 | C43: =prob1!C$8*prob1!C$2*LN((prob1!C$4-Sheet1!B43)/prob1!C$6+1) -> 0.975 | D43: =prob1!C$8*prob1!C$2*LN((prob1!C$5-Sheet1!B43)/prob1!C$7+1) -> 0.975 | E43: =prob1!C$4-prob1!C$6*(EXP(Sheet1!A43/prob1!C$8/prob1!C$2)-1) -> -4.987088706e+22 | F43: =prob1!C$5-prob1!C$7*(EXP(Sheet1!A43/prob1!C$8/prob1!C$2)-1) -> -4.987088706e+22 | G43: =prob1!C$10-prob1!C$11*(EXP(Sheet1!A43/prob1!C$12/prob1!C$2)-1) -> -2233099.058 | H43: -4466258.116
A44: 2 | B44: =prob1!C$16-SQRT((prob1!C$17/2)^2+prob1!C$6*prob1!C$7*EXP(Sheet1!A44/prob1!C$8/prob1!C$2)) -> -5863072.074 | C44: =prob1!C$8*prob1!C$2*LN((prob1!C$4-Sheet1!B44)/prob1!C$6+1) -> 1 | D44: =prob1!C$8*prob1!C$2*LN((prob1!C$5-Sheet1!B44)/prob1!C$7+1) -> 1 | E44: =prob1!C$4-prob1!C$6*(EXP(Sheet1!A44/prob1!C$8/prob1!C$2)-1) -> -3.437584867e+23 | F44: =prob1!C$5-prob1!C$7*(EXP(Sheet1!A44/prob1!C$8/prob1!C$2)-1) -> -3.437584867e+23 | G44: =prob1!C$10-prob1!C$11*(EXP(Sheet1!A44/prob1!C$12/prob1!C$2)-1) -> -5863012.074 | H44: -11726084.15
A45: 2.05 | B45: =prob1!C$16-SQRT((prob1!C$17/2)^2+prob1!C$6*prob1!C$7*EXP(Sheet1!A45/prob1!C$8/prob1!C$2)) -> -15393214.39 | C45: =prob1!C$8*prob1!C$2*LN((prob1!C$4-Sheet1!B45)/prob1!C$6+1) -> 1.025 | D45: =prob1!C$8*prob1!C$2*LN((prob1!C$5-Sheet1!B45)/prob1!C$7+1) -> 1.025 | E45: =prob1!C$4-prob1!C$6*(EXP(Sheet1!A45/prob1!C$8/prob1!C$2)-1) -> -2.369516649e+24 | F45: =prob1!C$5-prob1!C$7*(EXP(Sheet1!A45/prob1!C$8/prob1!C$2)-1) -> -2.369516649e+24 | G45: =prob1!C$10-prob1!C$11*(EXP(Sheet1!A45/prob1!C$12/prob1!C$2)-1) -> -15393154.39 | H45: -30786368.77
A46: 2.1 | B46: =prob1!C$16-SQRT((prob1!C$17/2)^2+prob1!C$6*prob1!C$7*EXP(Sheet1!A46/prob1!C$8/prob1!C$2)) -> -40414092.88 | C46: =prob1!C$8*prob1!C$2*LN((prob1!C$4-Sheet1!B46)/prob1!C$6+1) -> 1.05 | D46: =prob1!C$8*prob1!C$2*LN((prob1!C$5-Sheet1!B46)/prob1!C$7+1) -> 1.05 | E46: =prob1!C$4-prob1!C$6*(EXP(Sheet1!A46/prob1!C$8/prob1!C$2)-1) -> -1.63330052e+25 | F46: =prob1!C$5-prob1!C$7*(EXP(Sheet1!A46/prob1!C$8/prob1!C$2)-1) -> -1.63330052e+25 | G46: =prob1!C$10-prob1!C$11*(EXP(Sheet1!A46/prob1!C$12/prob1!C$2)-1) -> -40414032.88 | H46: -80828125.76
A47: 2.15 | B47: =prob1!C$16-SQRT((prob1!C$17/2)^2+prob1!C$6*prob1!C$7*EXP(Sheet1!A47/prob1!C$8/prob1!C$2)) -> -106105070 | C47: =prob1!C$8*prob1!C$2*LN((prob1!C$4-Sheet1!B47)/prob1!C$6+1) -> 1.075 | D47: =prob1!C$8*prob1!C$2*LN((prob1!C$5-Sheet1!B47)/prob1!C$7+1) -> 1.075 | E47: =prob1!C$4-prob1!C$6*(EXP(Sheet1!A47/prob1!C$8/prob1!C$2)-1) -> -1.125829012e+26 | F47: =prob1!C$5-prob1!C$7*(EXP(Sheet1!A47/prob1!C$8/prob1!C$2)-1) -> -1.125829012e+26 | G47: =prob1!C$10-prob1!C$11*(EXP(Sheet1!A47/prob1!C$12/prob1!C$2)-1) -> -106105010 | H47: -212210080
A48: 2.2 | B48: =prob1!C$16-SQRT((prob1!C$17/2)^2+prob1!C$6*prob1!C$7*EXP(Sheet1!A48/prob1!C$8/prob1!C$2)) -> -278573213.9 | C48: =prob1!C$8*prob1!C$2*LN((prob1!C$4-Sheet1!B48)/prob1!C$6+1) -> 1.1 | D48: =prob1!C$8*prob1!C$2*LN((prob1!C$5-Sheet1!B48)/prob1!C$7+1) -> 1.1 | E48: =prob1!C$4-prob1!C$6*(EXP(Sheet1!A48/prob1!C$8/prob1!C$2)-1) -> -7.760304664e+26 | F48: =prob1!C$5-prob1!C$7*(EXP(Sheet1!A48/prob1!C$8/prob1!C$2)-1) -> -7.760304664e+26 | G48: =prob1!C$10-prob1!C$11*(EXP(Sheet1!A48/prob1!C$12/prob1!C$2)-1) -> -278573153.9 | H48: -557146367.8
A49: 2.25 | B49: =prob1!C$16-SQRT((prob1!C$17/2)^2+prob1!C$6*prob1!C$7*EXP(Sheet1!A49/prob1!C$8/prob1!C$2)) -> -731379093.5 | C49: =prob1!C$8*prob1!C$2*LN((prob1!C$4-Sheet1!B49)/prob1!C$6+1) -> 1.125 | D49: =prob1!C$8*prob1!C$2*LN((prob1!C$5-Sheet1!B49)/prob1!C$7+1) -> 1.125 | E49: =prob1!C$4-prob1!C$6*(EXP(Sheet1!A49/prob1!C$8/prob1!C$2)-1) -> -5.349154076e+27 | F49: =prob1!C$5-prob1!C$7*(EXP(Sheet1!A49/prob1!C$8/prob1!C$2)-1) -> -5.349154076e+27 | G49: =prob1!C$10-prob1!C$11*(EXP(Sheet1!A49/prob1!C$12/prob1!C$2)-1) -> -731379033.5 | H49: -1462758127
A50: 2.3 | B50: =prob1!C$16-SQRT((prob1!C$17/2)^2+prob1!C$6*prob1!C$7*EXP(Sheet1!A50/prob1!C$8/prob1!C$2)) -> -1920196691 | C50: =prob1!C$8*prob1!C$2*LN((prob1!C$4-Sheet1!B50)/prob1!C$6+1) -> 1.15 | D50: =prob1!C$8*prob1!C$2*LN((prob1!C$5-Sheet1!B50)/prob1!C$7+1) -> 1.15 | E50: =prob1!C$4-prob1!C$6*(EXP(Sheet1!A50/prob1!C$8/prob1!C$2)-1) -> -3.687155411e+28 | F50: =prob1!C$5-prob1!C$7*(EXP(Sheet1!A50/prob1!C$8/prob1!C$2)-1) -> -3.687155411e+28 | G50: =prob1!C$10-prob1!C$11*(EXP(Sheet1!A50/prob1!C$12/prob1!C$2)-1) -> -1920196631 | H50: -3840393323
A51: 2.35 | B51: =prob1!C$16-SQRT((prob1!C$17/2)^2+prob1!C$6*prob1!C$7*EXP(Sheet1!A51/prob1!C$8/prob1!C$2)) -> -5041373657 | C51: =prob1!C$8*prob1!C$2*LN((prob1!C$4-Sheet1!B51)/prob1!C$6+1) -> 1.175 | D51: =prob1!C$8*prob1!C$2*LN((prob1!C$5-Sheet1!B51)/prob1!C$7+1) -> 1.175 | E51: =prob1!C$4-prob1!C$6*(EXP(Sheet1!A51/prob1!C$8/prob1!C$2)-1) -> -2.541544855e+29 | F51: =prob1!C$5-prob1!C$7*(EXP(Sheet1!A51/prob1!C$8/prob1!C$2)-1) -> -2.541544855e+29 | G51: =prob1!C$10-prob1!C$11*(EXP(Sheet1!A51/prob1!C$12/prob1!C$2)-1) -> -5041373597 | H51: -1.008274725e+10
A52: 2.4 | B52: =prob1!C$16-SQRT((prob1!C$17/2)^2+prob1!C$6*prob1!C$7*EXP(Sheet1!A52/prob1!C$8/prob1!C$2)) -> -1.32358567e+10 | C52: =prob1!C$8*prob1!C$2*LN((prob1!C$4-Sheet1!B52)/prob1!C$6+1) -> 1.2 | D52: =prob1!C$8*prob1!C$2*LN((prob1!C$5-Sheet1!B52)/prob1!C$7+1) -> 1.2 | E52: =prob1!C$4-prob1!C$6*(EXP(Sheet1!A52/prob1!C$8/prob1!C$2)-1) -> -1.751879032e+30 | F52: =prob1!C$5-prob1!C$7*(EXP(Sheet1!A52/prob1!C$8/prob1!C$2)-1) -> -1.751879032e+30 | G52: =prob1!C$10-prob1!C$11*(EXP(Sheet1!A52/prob1!C$12/prob1!C$2)-1) -> -1.323585664e+10 | H52: -2.647171334e+10
A53: 2.45 | B53: =prob1!C$16-SQRT((prob1!C$17/2)^2+prob1!C$6*prob1!C$7*EXP(Sheet1!A53/prob1!C$8/prob1!C$2)) -> -3.475003328e+10 | C53: =prob1!C$8*prob1!C$2*LN((prob1!C$4-Sheet1!B53)/prob1!C$6+1) -> 1.225 | D53: =prob1!C$8*prob1!C$2*LN((prob1!C$5-Sheet1!B53)/prob1!C$7+1) -> 1.225 | E53: =prob1!C$4-prob1!C$6*(EXP(Sheet1!A53/prob1!C$8/prob1!C$2)-1) -> -1.207564815e+31 | F53: =prob1!C$5-prob1!C$7*(EXP(Sheet1!A53/prob1!C$8/prob1!C$2)-1) -> -1.207564815e+31 | G53: =prob1!C$10-prob1!C$11*(EXP(Sheet1!A53/prob1!C$12/prob1!C$2)-1) -> -3.475003322e+10 | H53: -6.950006651e+10
A54: 2.5 | B54: =prob1!C$16-SQRT((prob1!C$17/2)^2+prob1!C$6*prob1!C$7*EXP(Sheet1!A54/prob1!C$8/prob1!C$2)) -> -9.123435224e+10 | C54: =prob1!C$8*prob1!C$2*LN((prob1!C$4-Sheet1!B54)/prob1!C$6+1) -> 1.25 | D54: =prob1!C$8*prob1!C$2*LN((prob1!C$5-Sheet1!B54)/prob1!C$7+1) -> 1.25 | E54: =prob1!C$4-prob1!C$6*(EXP(Sheet1!A54/prob1!C$8/prob1!C$2)-1) -> -8.323707032e+31 | F54: =prob1!C$5-prob1!C$7*(EXP(Sheet1!A54/prob1!C$8/prob1!C$2)-1) -> -8.323707032e+31 | G54: =prob1!C$10-prob1!C$11*(EXP(Sheet1!A54/prob1!C$12/prob1!C$2)-1) -> -9.123435218e+10 | H54: -1.824687044e+11
A55: 2.55 | B55: =prob1!C$16-SQRT((prob1!C$17/2)^2+prob1!C$6*prob1!C$7*EXP(Sheet1!A55/prob1!C$8/prob1!C$2)) -> -2.39530908e+11 | C55: =prob1!C$8*prob1!C$2*LN((prob1!C$4-Sheet1!B55)/prob1!C$6+1) -> 1.275 | D55: =prob1!C$8*prob1!C$2*LN((prob1!C$5-Sheet1!B55)/prob1!C$7+1) -> 1.275 | E55: =prob1!C$4-prob1!C$6*(EXP(Sheet1!A55/prob1!C$8/prob1!C$2)-1) -> -5.737505591e+32 | F55: =prob1!C$5-prob1!C$7*(EXP(Sheet1!A55/prob1!C$8/prob1!C$2)-1) -> -5.737505591e+32 | G55: =prob1!C$10-prob1!C$11*(EXP(Sheet1!A55/prob1!C$12/prob1!C$2)-1) -> -2.39530908e+11 | H55: -4.79061816e+11
A56: 2.6 | B56: =prob1!C$16-SQRT((prob1!C$17/2)^2+prob1!C$6*prob1!C$7*EXP(Sheet1!A56/prob1!C$8/prob1!C$2)) -> -6.288755769e+11 | C56: =prob1!C$8*prob1!C$2*LN((prob1!C$4-Sheet1!B56)/prob1!C$6+1) -> 1.3 | D56: =prob1!C$8*prob1!C$2*LN((prob1!C$5-Sheet1!B56)/prob1!C$7+1) -> 1.3 | E56: =prob1!C$4-prob1!C$6*(EXP(Sheet1!A56/prob1!C$8/prob1!C$2)-1) -> -3.954844912e+33 | F56: =prob1!C$5-prob1!C$7*(EXP(Sheet1!A56/prob1!C$8/prob1!C$2)-1) -> -3.954844912e+33 | G56: =prob1!C$10-prob1!C$11*(EXP(Sheet1!A56/prob1!C$12/prob1!C$2)-1) -> -6.288755768e+11 | H56: -1.257751154e+12
A57: 2.65 | B57: =prob1!C$16-SQRT((prob1!C$17/2)^2+prob1!C$6*prob1!C$7*EXP(Sheet1!A57/prob1!C$8/prob1!C$2)) -> -1.651079163e+12 | C57: =prob1!C$8*prob1!C$2*LN((prob1!C$4-Sheet1!B57)/prob1!C$6+1) -> 1.325 | D57: =prob1!C$8*prob1!C$2*LN((prob1!C$5-Sheet1!B57)/prob1!C$7+1) -> 1.325 | E57: =prob1!C$4-prob1!C$6*(EXP(Sheet1!A57/prob1!C$8/prob1!C$2)-1) -> -2.726062403e+34 | F57: =prob1!C$5-prob1!C$7*(EXP(Sheet1!A57/prob1!C$8/prob1!C$2)-1) -> -2.726062403e+34 | G57: =prob1!C$10-prob1!C$11*(EXP(Sheet1!A57/prob1!C$12/prob1!C$2)-1) -> -1.651079163e+12 | H57: -3.302158326e+12
A58: 2.7 | B58: =prob1!C$16-SQRT((prob1!C$17/2)^2+prob1!C$6*prob1!C$7*EXP(Sheet1!A58/prob1!C$8/prob1!C$2)) -> -4.33481996e+12 | C58: =prob1!C$8*prob1!C$2*LN((prob1!C$4-Sheet1!B58)/prob1!C$6+1) -> 1.35 | D58: =prob1!C$8*prob1!C$2*LN((prob1!C$5-Sheet1!B58)/prob1!C$7+1) -> 1.35 | E58: =prob1!C$4-prob1!C$6*(EXP(Sheet1!A58/prob1!C$8/prob1!C$2)-1) -> -1.879066409e+35 | F58: =prob1!C$5-prob1!C$7*(EXP(Sheet1!A58/prob1!C$8/prob1!C$2)-1) -> -1.879066409e+35 | G58: =prob1!C$10-prob1!C$11*(EXP(Sheet1!A58/prob1!C$12/prob1!C$2)-1) -> -4.33481996e+12 | H58: -8.66963992e+12
A59: 2.75 | B59: =prob1!C$16-SQRT((prob1!C$17/2)^2+prob1!C$6*prob1!C$7*EXP(Sheet1!A59/prob1!C$8/prob1!C$2)) -> -1.138083776e+13 | C59: =prob1!C$8*prob1!C$2*LN((prob1!C$4-Sheet1!B59)/prob1!C$6+1) -> 1.375 | D59: =prob1!C$8*prob1!C$2*LN((prob1!C$5-Sheet1!B59)/prob1!C$7+1) -> 1.375 | E59: =prob1!C$4-prob1!C$6*(EXP(Sheet1!A59/prob1!C$8/prob1!C$2)-1) -> -1.295234681e+36 | F59: =prob1!C$5-prob1!C$7*(EXP(Sheet1!A59/prob1!C$8/prob1!C$2)-1) -> -1.295234681e+36 | G59: =prob1!C$10-prob1!C$11*(EXP(Sheet1!A59/prob1!C$12/prob1!C$2)-1) -> -1.138083776e+13 | H59: -2.276167552e+13
A60: 2.8 | B60: =prob1!C$16-SQRT((prob1!C$17/2)^2+prob1!C$6*prob1!C$7*EXP(Sheet1!A60/prob1!C$8/prob1!C$2)) -> -2.987978032e+13 | C60: =prob1!C$8*prob1!C$2*LN((prob1!C$4-Sheet1!B60)/prob1!C$6+1) -> 1.4 | D60: =prob1!C$8*prob1!C$2*LN((prob1!C$5-Sheet1!B60)/prob1!C$7+1) -> 1.4 | E60: =prob1!C$4-prob1!C$6*(EXP(Sheet1!A60/prob1!C$8/prob1!C$2)-1) -> -8.92801272e+36 | F60: =prob1!C$5-prob1!C$7*(EXP(Sheet1!A60/prob1!C$8/prob1!C$2)-1) -> -8.92801272e+36 | G60: =prob1!C$10-prob1!C$11*(EXP(Sheet1!A60/prob1!C$12/prob1!C$2)-1) -> -2.987978032e+13 | H60: -5.975956064e+13
A61: 2.85 | B61: =prob1!C$16-SQRT((prob1!C$17/2)^2+prob1!C$6*prob1!C$7*EXP(Sheet1!A61/prob1!C$8/prob1!C$2)) -> -7.844776376e+13 | C61: =prob1!C$8*prob1!C$2*LN((prob1!C$4-Sheet1!B61)/prob1!C$6+1) -> 1.425 | D61: =prob1!C$8*prob1!C$2*LN((prob1!C$5-Sheet1!B61)/prob1!C$7+1) -> 1.425 | E61: =prob1!C$4-prob1!C$6*(EXP(Sheet1!A61/prob1!C$8/prob1!C$2)-1) -> -6.154051638e+37 | F61: =prob1!C$5-prob1!C$7*(EXP(Sheet1!A61/prob1!C$8/prob1!C$2)-1) -> -6.154051638e+37 | G61: =prob1!C$10-prob1!C$11*(EXP(Sheet1!A61/prob1!C$12/prob1!C$2)-1) -> -7.844776376e+13 | H61: -1.568955275e+14
A62: 2.9 | B62: =prob1!C$16-SQRT((prob1!C$17/2)^2+prob1!C$6*prob1!C$7*EXP(Sheet1!A62/prob1!C$8/prob1!C$2)) -> -2.059604044e+14 | C62: =prob1!C$8*prob1!C$2*LN((prob1!C$4-Sheet1!B62)/prob1!C$6+1) -> 1.45 | D62: =prob1!C$8*prob1!C$2*LN((prob1!C$5-Sheet1!B62)/prob1!C$7+1) -> 1.45 | E62: =prob1!C$4-prob1!C$6*(EXP(Sheet1!A62/prob1!C$8/prob1!C$2)-1) -> -4.241968818e+38 | F62: =prob1!C$5-prob1!C$7*(EXP(Sheet1!A62/prob1!C$8/prob1!C$2)-1) -> -4.241968818e+38 | G62: =prob1!C$10-prob1!C$11*(EXP(Sheet1!A62/prob1!C$12/prob1!C$2)-1) -> -2.059604044e+14 | H62: -4.119208088e+14
A63: 2.95 | B63: =prob1!C$16-SQRT((prob1!C$17/2)^2+prob1!C$6*prob1!C$7*EXP(Sheet1!A63/prob1!C$8/prob1!C$2)) -> -5.407380166e+14 | C63: =prob1!C$8*prob1!C$2*LN((prob1!C$4-Sheet1!B63)/prob1!C$6+1) -> 1.475 | D63: =prob1!C$8*prob1!C$2*LN((prob1!C$5-Sheet1!B63)/prob1!C$7+1) -> 1.475 | E63: =prob1!C$4-prob1!C$6*(EXP(Sheet1!A63/prob1!C$8/prob1!C$2)-1) -> -2.923976026e+39 | F63: =prob1!C$5-prob1!C$7*(EXP(Sheet1!A63/prob1!C$8/prob1!C$2)-1) -> -2.923976026e+39 | G63: =prob1!C$10-prob1!C$11*(EXP(Sheet1!A63/prob1!C$12/prob1!C$2)-1) -> -5.407380166e+14 | H63: -1.081476033e+15
A64: 3 | B64: =prob1!C$16-SQRT((prob1!C$17/2)^2+prob1!C$6*prob1!C$7*EXP(Sheet1!A64/prob1!C$8/prob1!C$2)) -> -1419678716754480 | C64: =prob1!C$8*prob1!C$2*LN((prob1!C$4-Sheet1!B64)/prob1!C$6+1) -> 1.5 | D64: =prob1!C$8*prob1!C$2*LN((prob1!C$5-Sheet1!B64)/prob1!C$7+1) -> 1.5 | E64: =prob1!C$4-prob1!C$6*(EXP(Sheet1!A64/prob1!C$8/prob1!C$2)-1) -> -2.015487659e+40 | F64: =prob1!C$5-prob1!C$7*(EXP(Sheet1!A64/prob1!C$8/prob1!C$2)-1) -> -2.015487659e+40 | G64: =prob1!C$10-prob1!C$11*(EXP(Sheet1!A64/prob1!C$12/prob1!C$2)-1) -> -1419678716754420 | H64: -2839357433508900

Sheet const
A1: Fundamental Constants:
A2: Description
A3: Planck constant | B3: h (J.s) | C3: 6.62606876e-34 | E3: h (eV.s) | F3: =C3/C5 -> 4.135667273e-15
A4: speed of light | B4: c (m/s) | C4: 299792458
A5: fundamental electric charge | B5: e (C) | C5: 1.602176462e-19
A6: Boltzmann constant | B6: k_B (J/K) | C6: 1.3806503e-23 | E6: k_B (eV/K) | F6: =C6/C5 -> 8.617342301e-05
A7: electron mass | B7: m_e (kg) | C7: 9.10938188e-31 | E7: m_e·c^2 (J) | F7: =C7*C4^2 -> 8.18710414e-14 | H7: m_e·c^2 (eV) | I7: =F7/C5 -> 510998.9027
A8: Avagodro number | B8: N_A (1/mole) | C8: 6.0221415e+23
A9: permitivitty of free space | B9: eps0 (F/m) | C9: 8.854187817e-12
A13: Derived Constants:
A14: Description
A15: room temp. thermal energy | B15: k_B·(300K) (eV) | C15: =300*const!C6/const!C5 -> 0.0258520269
A16: Planck constant x speed of light | B16: h·c (eV·nm) | C16: =const!F3*const!C4*1000000000 -> 1239.841857 | E16: h·c (KeV·nm) | F16: =C16/1000 -> 1.239841857
A17: universal gas constant | B17: R (J/mol/K) | C17: =const!C6*const!C8 -> 8.314471469
A18: Faraday Constant | B18: F (C/mol) | C18: =const!C8*const!C5 -> 96485.33362
A19: Stefan Constant | B19: ss (W.m^2/K) | C19: =2*PI()^5/15*C6^4/C3^3/C4^2 -> 5.670399344e-08
A20: h_bar | C20: =C3/2/PI() -> 1.054571596e-34
A21: Bohr Radius | B21: a0 (m) | C21: =4*PI()*C9*C20^2/C7/C5^2 -> 5.291772086e-11
A22: Rydberg | C22: =C20^2/2/C7/C21^2 -> 2.179871902e-18 | F22: =C22/C5 -> 13.60569172
A23: Reference effective DOS | B23: N0 (cm^-3) | C23: =2*(2*PI()*I7*C15/(C16/10000000)^2)^1.5 -> 2.509416596e+19
A25: astronomical values
A26: earth-sun distance | B26: Des (m) | C26: 150000000000
A27: sun diameter | B27: ds (m) | C27: 1390000000
